[Event "Titled Tuesday Blitz March 15 Late 2022"]
[White "Maghsoodloo, Parham"]
[Black "Dauner, Benedikt"]
[WhiteFideId "12539929"]
[BlackFideId "16225899"]
[WhiteElo "2630"]
[BlackElo "2230"]
[Result "1-0"]
[Round "01"]
[TimeControl "180+1"]
[Date "2022.03.15"]
[WhiteClock "0:02:03"]
[BlackClock "0:00:06"]

1. e4 {[%clk 0:02:59]}  c5 {[%clk 0:02:55]} 2. Nf3 {[%clk 0:03:00]}  Nf6 {[%clk 0:02:55]} 3. e5 {[%clk 0:02:59]}  Nd5 {[%clk 0:02:56]} 4. Nc3 {[%clk 0:03:00]}  e6 {[%clk 0:02:55]} 5. Bc4 {[%clk 0:02:56]}  Nb6 {[%clk 0:02:53]} 6. d3 {[%clk 0:02:54]}  Nc6 {[%clk 0:02:51]} 7. Bb5 {[%clk 0:02:53]}  Be7 {[%clk 0:02:43]} 8. h4 {[%clk 0:02:53]}  Nd4 {[%clk 0:02:37]} 9. a4 {[%clk 0:02:48]}  a6 {[%clk 0:02:34]} 10. Bc4 {[%clk 0:02:48]}  Qc7 {[%clk 0:02:33]} 11. Bf4 {[%clk 0:02:47]}  h6 {[%clk 0:02:29]} 12. Ne4 {[%clk 0:02:42]}  Nxc4 {[%clk 0:02:12]} 13. dxc4 {[%clk 0:02:41]}  Nxf3+ {[%clk 0:02:10]} 14. Qxf3 {[%clk 0:02:42]}  Qc6 {[%clk 0:02:04]} 15. a5 {[%clk 0:02:33]}  Ra7 {[%clk 0:01:57]} 16. h5 {[%clk 0:02:30]}  O-O {[%clk 0:01:49]} 17. Nd6 {[%clk 0:02:20]}  Qxf3 {[%clk 0:01:42]} 18. gxf3 {[%clk 0:02:19]}  f6 {[%clk 0:01:19]} 19. Rg1 {[%clk 0:02:18]}  Bxd6 {[%clk 0:01:06]} 20. exd6 {[%clk 0:02:18]}  Kf7 {[%clk 0:01:06]} 21. Be3 {[%clk 0:02:18]}  Ra8 {[%clk 0:00:52]} 22. Bxc5 {[%clk 0:02:18]}  e5 {[%clk 0:00:50]} 23. O-O-O {[%clk 0:02:17]}  Re8 {[%clk 0:00:49]} 24. Bb6 {[%clk 0:02:16]}  Re6 {[%clk 0:00:47]} 25. Rd5 {[%clk 0:02:14]}  Re8 {[%clk 0:00:46]} 26. Kd2 {[%clk 0:02:14]}  Re6 {[%clk 0:00:46]} 27. Kc3 {[%clk 0:02:15]}  Re8 {[%clk 0:00:47]} 28. Kb4 {[%clk 0:02:15]}  Re6 {[%clk 0:00:45]} 29. Be3 {[%clk 0:02:16]}  Re8 {[%clk 0:00:45]} 30. Kc5 {[%clk 0:02:16]}  b6+ {[%clk 0:00:35]} 31. axb6 {[%clk 0:02:16]}  Bb7 {[%clk 0:00:35]} 32. Kb4 {[%clk 0:02:17]}  Rec8 {[%clk 0:00:21]} 33. Ra5 {[%clk 0:02:10]}  Rc6 {[%clk 0:00:20]} 34. c5 {[%clk 0:02:09]}  Ke6 {[%clk 0:00:20]} 35. Rxg7 {[%clk 0:02:09]}  Rcc8 {[%clk 0:00:19]} 36. Re7+ {[%clk 0:02:08]}  Kf5 {[%clk 0:00:18]} 37. Rxd7 {[%clk 0:02:09]}  Bc6 {[%clk 0:00:17]} 38. Rh7 {[%clk 0:02:08]}  Bxf3 {[%clk 0:00:15]} 39. Rxh6 {[%clk 0:02:08]}  Be4 {[%clk 0:00:13]} 40. c4 {[%clk 0:02:08]}  Rg8 {[%clk 0:00:13]} 41. Ra1 {[%clk 0:02:07]}  Bc6 {[%clk 0:00:07]} 42. Ka5 {[%clk 0:02:07]}  Ke4 {[%clk 0:00:06]} 43. b4 {[%clk 0:02:07]}  f5 {[%clk 0:00:05]} 44. Bc1 {[%clk 0:02:05]}  Rg2 {[%clk 0:00:05]} 45. Ra2 {[%clk 0:02:06]}  f4 {[%clk 0:00:05]} 46. Re6 {[%clk 0:02:04]}  Rg1 {[%clk 0:00:02]} 47. Bb2 {[%clk 0:02:03]}  Rd1 {[%clk 0:00:03]} 48. Rxe5+ {[%clk 0:02:03]}  Kf3 {[%clk 0:00:03]} 49. h6 {[%clk 0:02:04]}  Rd2 {[%clk 0:00:04]} 50. h7 {[%clk 0:02:04]}  Rh8 {[%clk 0:00:04]} 51. Re7 {[%clk 0:02:04]}  Rf8 {[%clk 0:00:03]} 52. Ra3+ {[%clk 0:02:03]}  Kg2 {[%clk 0:00:03]} 53. h8=Q {[%clk 0:02:04]}  Rxb2 {[%clk 0:00:03]} 54. Qxb2 {[%clk 0:02:04]}  Bf3 {[%clk 0:00:04]} 55. b7 {[%clk 0:02:00]}  Ra8 {[%clk 0:00:05]} 56. bxa8=Q {[%clk 0:02:00]}  Bxa8 {[%clk 0:00:05]} 57. d7 {[%clk 0:02:01]}  Bf3 {[%clk 0:00:06]} 58. d8=Q {[%clk 0:02:02]}  Kh3 {[%clk 0:00:06]} 59. Rxf3+ {[%clk 0:02:02]}  Kg2 {[%clk 0:00:07]} 60. Qg8+ {[%clk 0:02:02]}  Kf1 {[%clk 0:00:06]} 61. Qc1# {[%clk 0:02:03]} 1-0


[Site "https://www.chess.com"]

[Event "Titled Tuesday Blitz March 15 Late 2022"]
[White "Melkumyan, Hrant"]
[Black "Perez Leiva, Jerzy Jesus"]
[WhiteFideId "13302485"]
[BlackFideId "3524337"]
[WhiteElo "2604"]
[BlackElo "2261"]
[Result "1-0"]
[Round "01"]
[TimeControl "180+1"]
[Date "2022.03.15"]
[WhiteClock "0:01:41"]
[BlackClock "0:00:08"]

1. d4 {[%clk 0:02:58]}  Nf6 {[%clk 0:02:59]} 2. c4 {[%clk 0:02:58]}  e6 {[%clk 0:02:59]} 3. Nf3 {[%clk 0:02:56]}  d5 {[%clk 0:02:59]} 4. Nc3 {[%clk 0:02:57]}  Bb4 {[%clk 0:02:58]} 5. Bg5 {[%clk 0:02:55]}  h6 {[%clk 0:02:58]} 6. Qa4+ {[%clk 0:02:53]}  Nc6 {[%clk 0:02:58]} 7. Bxf6 {[%clk 0:02:54]}  Qxf6 {[%clk 0:02:57]} 8. e3 {[%clk 0:02:55]}  O-O {[%clk 0:02:57]} 9. Rc1 {[%clk 0:02:54]}  Bd7 {[%clk 0:02:25]} 10. Qb3 {[%clk 0:02:54]}  Rfe8 {[%clk 0:02:06]} 11. a3 {[%clk 0:02:40]}  Ba5 {[%clk 0:02:01]} 12. Be2 {[%clk 0:02:32]}  dxc4 {[%clk 0:01:58]} 13. Qxc4 {[%clk 0:02:31]}  e5 {[%clk 0:01:07]} 14. b4 {[%clk 0:02:29]}  exd4 {[%clk 0:00:50]} 15. Nd5 {[%clk 0:02:28]}  Qd6 {[%clk 0:00:51]} 16. bxa5 {[%clk 0:02:20]}  Be6 {[%clk 0:00:40]} 17. e4 {[%clk 0:02:18]}  Nxa5 {[%clk 0:00:36]} 18. Qc5 {[%clk 0:02:17]}  Bxd5 {[%clk 0:00:32]} 19. Qxa5 {[%clk 0:02:05]}  Rxe4 {[%clk 0:00:22]} 20. Kf1 {[%clk 0:02:00]}  Rae8 {[%clk 0:00:19]} 21. Bd3 {[%clk 0:01:59]}  Rf4 {[%clk 0:00:19]} 22. Qxc7 {[%clk 0:01:55]}  Qf6 {[%clk 0:00:18]} 23. Re1 {[%clk 0:01:44]}  Rxe1+ {[%clk 0:00:15]} 24. Kxe1 {[%clk 0:01:45]}  Qe6+ {[%clk 0:00:12]} 25. Kd2 {[%clk 0:01:43]}  Qg4 {[%clk 0:00:08]} 26. Qd8# {[%clk 0:01:41]} 1-0


[Site "https://www.chess.com"]

[Event "Titled Tuesday Blitz March 15 Late 2022"]
[White "Mikhailov, Viacheslav"]
[Black "Romero Ruscalleda, Josep"]
[WhiteFideId "4187369"]
[BlackFideId "2231859"]
[WhiteElo "2381"]
[BlackElo "2338"]
[Result "1-0"]
[Round "01"]
[TimeControl "180+1"]
[Date "2022.03.16"]
[WhiteClock "0:01:06"]
[BlackClock "0:00:23"]

1. Nf3 {[%clk 0:03:00]}  g6 {[%clk 0:03:00]} 2. g3 {[%clk 0:03:00]}  Bg7 {[%clk 0:03:00]} 3. Bg2 {[%clk 0:03:00]}  d6 {[%clk 0:03:01]} 4. O-O {[%clk 0:03:01]}  e5 {[%clk 0:03:01]} 5. d4 {[%clk 0:03:01]}  exd4 {[%clk 0:02:58]} 6. Nxd4 {[%clk 0:03:02]}  Nf6 {[%clk 0:02:58]} 7. c4 {[%clk 0:03:02]}  O-O {[%clk 0:02:58]} 8. Nc3 {[%clk 0:03:02]}  c6 {[%clk 0:02:52]} 9. b3 {[%clk 0:03:02]}  Nbd7 {[%clk 0:02:52]} 10. Bb2 {[%clk 0:03:01]}  Nc5 {[%clk 0:02:50]} 11. Qd2 {[%clk 0:03:01]}  Re8 {[%clk 0:02:40]} 12. Rad1 {[%clk 0:03:01]}  d5 {[%clk 0:02:32]} 13. cxd5 {[%clk 0:03:00]}  Nxd5 {[%clk 0:02:32]} 14. Nxd5 {[%clk 0:03:00]}  cxd5 {[%clk 0:02:32]} 15. Nb5 {[%clk 0:02:55]}  Bxb2 {[%clk 0:02:18]} 16. Qxb2 {[%clk 0:02:56]}  Be6 {[%clk 0:02:18]} 17. h4 {[%clk 0:02:53]}  Qb6 {[%clk 0:02:15]} 18. Nc3 {[%clk 0:02:42]}  Rad8 {[%clk 0:02:12]} 19. Nxd5 {[%clk 0:02:42]}  Bxd5 {[%clk 0:02:04]} 20. Rxd5 {[%clk 0:02:42]}  Na4 {[%clk 0:01:55]} 21. Qd2 {[%clk 0:02:28]}  Rxd5 {[%clk 0:01:53]} 22. Bxd5 {[%clk 0:02:29]}  Nc5 {[%clk 0:01:44]} 23. Rd1 {[%clk 0:02:25]}  Ne4 {[%clk 0:01:41]} 24. Qf4 {[%clk 0:02:21]}  Nd6 {[%clk 0:01:35]} 25. e4 {[%clk 0:01:54]}  Kg7 {[%clk 0:01:31]} 26. h5 {[%clk 0:01:49]}  h6 {[%clk 0:01:24]} 27. hxg6 {[%clk 0:01:45]}  fxg6 {[%clk 0:01:24]} 28. Bc4 {[%clk 0:01:22]}  Rd8 {[%clk 0:00:31]} 29. Qe5+ {[%clk 0:01:21]}  Kh7 {[%clk 0:00:24]} 30. Qe7+ {[%clk 0:01:20]}  Kh8 {[%clk 0:00:24]} 31. e5 {[%clk 0:01:08]}  Nf7 {[%clk 0:00:23]} 32. Rxd8+ {[%clk 0:01:05]}  Nxd8 {[%clk 0:00:23]} 33. Qf8+ {[%clk 0:01:06]} 1-0


[Site "https://www.chess.com"]

[Event "Titled Tuesday Blitz March 15 Late 2022"]
[White "Miszler, Levente"]
[Black "Lysyj, Igor"]
[WhiteFideId "763276"]
[BlackFideId "4150120"]
[WhiteElo "1966"]
[BlackElo "2611"]
[Result "0-1"]
[Round "01"]
[TimeControl "180+1"]
[Date "2022.03.16"]
[WhiteClock "0:00:08"]
[BlackClock "0:00:39"]

1. Nf3 {[%clk 0:03:00]}  Nf6 {[%clk 0:02:59]} 2. c4 {[%clk 0:02:59]}  b6 {[%clk 0:02:58]} 3. g3 {[%clk 0:02:58]}  Bb7 {[%clk 0:02:58]} 4. Bg2 {[%clk 0:02:59]}  c5 {[%clk 0:02:57]} 5. O-O {[%clk 0:02:59]}  e6 {[%clk 0:02:58]} 6. d4 {[%clk 0:02:53]}  cxd4 {[%clk 0:02:57]} 7. Nxd4 {[%clk 0:02:53]}  Bxg2 {[%clk 0:02:56]} 8. Kxg2 {[%clk 0:02:54]}  Qc8 {[%clk 0:02:57]} 9. b3 {[%clk 0:02:53]}  Nc6 {[%clk 0:02:55]} 10. Bb2 {[%clk 0:02:52]}  Be7 {[%clk 0:02:55]} 11. e3 {[%clk 0:02:49]}  O-O {[%clk 0:02:55]} 12. Nd2 {[%clk 0:02:48]}  Rd8 {[%clk 0:02:53]} 13. N2f3 {[%clk 0:02:48]}  Qb7 {[%clk 0:02:52]} 14. Kg1 {[%clk 0:02:46]}  a6 {[%clk 0:02:51]} 15. Qe2 {[%clk 0:02:45]}  Nxd4 {[%clk 0:02:45]} 16. Nxd4 {[%clk 0:02:41]}  Ne4 {[%clk 0:02:44]} 17. Rac1 {[%clk 0:02:37]}  Ng5 {[%clk 0:02:38]} 18. h4 {[%clk 0:02:32]}  Ne4 {[%clk 0:02:37]} 19. Rfd1 {[%clk 0:02:17]}  Rac8 {[%clk 0:02:34]} 20. Nf3 {[%clk 0:02:01]}  d6 {[%clk 0:02:25]} 21. Nd2 {[%clk 0:01:59]}  Nc5 {[%clk 0:02:20]} 22. Qg4 {[%clk 0:01:51]}  Bf8 {[%clk 0:02:20]} 23. Qf3 {[%clk 0:01:47]}  Qb8 {[%clk 0:02:18]} 24. Ne4 {[%clk 0:01:46]}  Nxe4 {[%clk 0:02:13]} 25. Qxe4 {[%clk 0:01:46]}  b5 {[%clk 0:02:13]} 26. Qd3 {[%clk 0:01:34]}  d5 {[%clk 0:02:08]} 27. cxd5 {[%clk 0:01:32]}  Rxd5 {[%clk 0:02:08]} 28. Qe4 {[%clk 0:01:30]}  Rxc1 {[%clk 0:02:03]} 29. Rxc1 {[%clk 0:01:31]}  h5 {[%clk 0:02:02]} 30. Bd4 {[%clk 0:01:21]}  Qb7 {[%clk 0:01:58]} 31. Qc2 {[%clk 0:01:06]}  e5 {[%clk 0:01:57]} 32. Bb2 {[%clk 0:01:06]}  Rc5 {[%clk 0:01:55]} 33. Qd2 {[%clk 0:01:05]}  Rxc1+ {[%clk 0:01:53]} 34. Qxc1 {[%clk 0:01:04]}  f6 {[%clk 0:01:51]} 35. Qc2 {[%clk 0:00:58]}  e4 {[%clk 0:01:47]} 36. Bd4 {[%clk 0:00:45]}  Kf7 {[%clk 0:01:43]} 37. Kg2 {[%clk 0:00:39]}  Be7 {[%clk 0:01:41]} 38. a4 {[%clk 0:00:39]}  g6 {[%clk 0:01:39]} 39. Qc3 {[%clk 0:00:29]}  Qd7 {[%clk 0:01:32]} 40. Qa5 {[%clk 0:00:26]}  Qc6 {[%clk 0:01:30]} 41. axb5 {[%clk 0:00:24]}  axb5 {[%clk 0:01:30]} 42. Qc3 {[%clk 0:00:22]}  Qd5 {[%clk 0:01:22]} 43. b4 {[%clk 0:00:16]}  Qc4 {[%clk 0:00:51]} 44. Qxc4+ {[%clk 0:00:16]}  bxc4 {[%clk 0:00:50]} 45. b5 {[%clk 0:00:16]}  Ke6 {[%clk 0:00:49]} 46. Kf1 {[%clk 0:00:16]}  g5 {[%clk 0:00:46]} 47. Ke2 {[%clk 0:00:15]}  gxh4 {[%clk 0:00:43]} 48. gxh4 {[%clk 0:00:15]}  f5 {[%clk 0:00:43]} 49. b6 {[%clk 0:00:13]}  Kd7 {[%clk 0:00:43]} 50. Kd2 {[%clk 0:00:12]}  Bxh4 {[%clk 0:00:41]} 51. Be5 {[%clk 0:00:09]}  Kc6 {[%clk 0:00:41]} 52. Bc7 {[%clk 0:00:08]}  Bxf2 {[%clk 0:00:40]} 53. Kc3 {[%clk 0:00:07]}  Bxe3 {[%clk 0:00:39]} 54. Kxc4 {[%clk 0:00:08]}  Bxb6 {[%clk 0:00:39]} 55. Bf4 {[%clk 0:00:07]}  h4 {[%clk 0:00:38]} 56. Kc3 {[%clk 0:00:07]}  h3 {[%clk 0:00:38]} 57. Kd2 {[%clk 0:00:08]}  Bc7 {[%clk 0:00:39]} 0-1


[Site "https://www.chess.com"]

[Event "Titled Tuesday Blitz March 15 Late 2022"]
[White "Odegov, Artem"]
[Black "Jacobson, Brandon"]
[WhiteFideId "34183644"]
[BlackFideId "30901561"]
[WhiteElo "2286"]
[BlackElo "2362"]
[Result "0-1"]
[Round "01"]
[TimeControl "180+1"]
[Date "2022.03.15"]
[WhiteClock "0:00:07"]
[BlackClock "0:00:42"]

1. d4 {[%clk 0:02:55]}  Nf6 {[%clk 0:02:59]} 2. c4 {[%clk 0:02:54]}  g6 {[%clk 0:02:59]} 3. Nc3 {[%clk 0:02:54]}  Bg7 {[%clk 0:03:00]} 4. e4 {[%clk 0:02:54]}  d6 {[%clk 0:02:56]} 5. h3 {[%clk 0:02:55]}  O-O {[%clk 0:02:55]} 6. Be3 {[%clk 0:02:55]}  Nbd7 {[%clk 0:02:54]} 7. Bd3 {[%clk 0:02:55]}  e5 {[%clk 0:02:51]} 8. d5 {[%clk 0:02:55]}  Nc5 {[%clk 0:02:48]} 9. Bc2 {[%clk 0:02:55]}  a5 {[%clk 0:02:48]} 10. g4 {[%clk 0:02:54]}  c6 {[%clk 0:02:43]} 11. Nge2 {[%clk 0:02:53]}  cxd5 {[%clk 0:02:43]} 12. cxd5 {[%clk 0:02:54]}  Bd7 {[%clk 0:02:40]} 13. a4 {[%clk 0:02:54]}  Qb6 {[%clk 0:02:35]} 14. O-O {[%clk 0:02:45]}  Qb4 {[%clk 0:02:34]} 15. f3 {[%clk 0:02:43]}  Rfc8 {[%clk 0:02:34]} 16. Qd2 {[%clk 0:02:40]}  Bf8 {[%clk 0:02:32]} 17. Nc1 {[%clk 0:02:34]}  Be7 {[%clk 0:02:23]} 18. Nd3 {[%clk 0:02:32]}  Nxd3 {[%clk 0:02:21]} 19. Bxd3 {[%clk 0:02:33]}  Bd8 {[%clk 0:02:21]} 20. Qf2 {[%clk 0:02:23]}  Be8 {[%clk 0:02:11]} 21. Rfc1 {[%clk 0:02:21]}  Nd7 {[%clk 0:02:10]} 22. Nb5 {[%clk 0:02:17]}  Nc5 {[%clk 0:01:45]} 23. Bxc5 {[%clk 0:01:49]}  Rxc5 {[%clk 0:01:46]} 24. Rxc5 {[%clk 0:01:49]}  dxc5 {[%clk 0:01:47]} 25. Rc1 {[%clk 0:01:42]}  Qxa4 {[%clk 0:01:14]} 26. Qxc5 {[%clk 0:01:31]}  Bg5 {[%clk 0:01:14]} 27. Rc2 {[%clk 0:00:57]}  Bd7 {[%clk 0:00:57]} 28. Nd6 {[%clk 0:00:41]}  Be7 {[%clk 0:00:41]} 29. Kg2 {[%clk 0:00:28]}  Rc8 {[%clk 0:00:41]} 30. Qxc8+ {[%clk 0:00:19]}  Bxc8 {[%clk 0:00:42]} 31. Nxc8 {[%clk 0:00:13]}  Bf8 {[%clk 0:00:42]} 32. Nb6 {[%clk 0:00:08]}  Qd4 {[%clk 0:00:42]} 33. Bf1 {[%clk 0:00:07]}  Qxb6 {[%clk 0:00:42]} 0-1


[Site "https://www.chess.com"]

[Event "Titled Tuesday Blitz March 15 Late 2022"]
[White "Palachev, Petr"]
[Black "Peatman, Carter"]
[WhiteFideId "24129003"]
[BlackFideId "2096480"]
[WhiteElo "2339"]
[BlackElo "2422"]
[Result "1-0"]
[Round "01"]
[TimeControl "180+1"]
[Date "2022.03.16"]
[WhiteClock "0:00:18"]
[BlackClock "0:00:12"]

1. d4 {[%clk 0:02:52]}  d5 {[%clk 0:02:59]} 2. Nf3 {[%clk 0:02:52]}  Nf6 {[%clk 0:02:59]} 3. e3 {[%clk 0:02:52]}  Bf5 {[%clk 0:02:57]} 4. c4 {[%clk 0:02:52]}  c6 {[%clk 0:02:56]} 5. Nc3 {[%clk 0:02:53]}  e6 {[%clk 0:02:56]} 6. Bd3 {[%clk 0:02:53]}  Bxd3 {[%clk 0:02:56]} 7. Qxd3 {[%clk 0:02:54]}  Nbd7 {[%clk 0:02:55]} 8. O-O {[%clk 0:02:54]}  Bd6 {[%clk 0:02:55]} 9. e4 {[%clk 0:02:53]}  dxe4 {[%clk 0:02:55]} 10. Nxe4 {[%clk 0:02:54]}  Nxe4 {[%clk 0:02:56]} 11. Qxe4 {[%clk 0:02:55]}  Nf6 {[%clk 0:02:57]} 12. Qe2 {[%clk 0:02:56]}  O-O {[%clk 0:02:55]} 13. b3 {[%clk 0:02:53]}  Qc7 {[%clk 0:02:52]} 14. Bb2 {[%clk 0:02:52]}  Rfe8 {[%clk 0:02:52]} 15. Rad1 {[%clk 0:02:52]}  a5 {[%clk 0:02:48]} 16. Rd3 {[%clk 0:02:53]}  a4 {[%clk 0:02:45]} 17. Rfd1 {[%clk 0:02:54]}  axb3 {[%clk 0:02:43]} 18. axb3 {[%clk 0:02:54]}  Bb4 {[%clk 0:02:40]} 19. Ne5 {[%clk 0:02:54]}  Nd7 {[%clk 0:02:30]} 20. Qh5 {[%clk 0:02:34]}  Nxe5 {[%clk 0:02:24]} 21. dxe5 {[%clk 0:02:35]}  Rad8 {[%clk 0:02:24]} 22. h4 {[%clk 0:02:10]}  Rxd3 {[%clk 0:02:15]} 23. Rxd3 {[%clk 0:02:11]}  Rd8 {[%clk 0:02:15]} 24. Rg3 {[%clk 0:02:11]}  Qd7 {[%clk 0:02:08]} 25. Kh2 {[%clk 0:02:00]}  Qd2 {[%clk 0:01:55]} 26. Qg5 {[%clk 0:01:00]}  Qxg5 {[%clk 0:01:54]} 27. hxg5 {[%clk 0:01:00]}  Rd2 {[%clk 0:01:52]} 28. Bc1 {[%clk 0:00:56]}  Rxf2 {[%clk 0:01:50]} 29. Rd3 {[%clk 0:00:57]}  Kf8 {[%clk 0:01:32]} 30. Rd8+ {[%clk 0:00:54]}  Ke7 {[%clk 0:01:31]} 31. Rb8 {[%clk 0:00:55]}  Bc3 {[%clk 0:01:12]} 32. Rxb7+ {[%clk 0:00:54]}  Kd8 {[%clk 0:01:10]} 33. Kg3 {[%clk 0:00:51]}  Re2 {[%clk 0:01:04]} 34. Bf4 {[%clk 0:00:49]}  Ke8 {[%clk 0:00:35]} 35. Kf3 {[%clk 0:00:45]}  Re1 {[%clk 0:00:35]} 36. Rb8+ {[%clk 0:00:42]}  Ke7 {[%clk 0:00:33]} 37. Rb7+ {[%clk 0:00:43]}  Ke8 {[%clk 0:00:34]} 38. Rc7 {[%clk 0:00:44]}  Bxe5 {[%clk 0:00:33]} 39. Bxe5 {[%clk 0:00:41]}  Rxe5 {[%clk 0:00:34]} 40. Rxc6 {[%clk 0:00:41]}  Rxg5 {[%clk 0:00:34]} 41. b4 {[%clk 0:00:33]}  Rf5+ {[%clk 0:00:29]} 42. Ke4 {[%clk 0:00:32]}  Rf2 {[%clk 0:00:29]} 43. b5 {[%clk 0:00:28]}  Kd7 {[%clk 0:00:23]} 44. Ra6 {[%clk 0:00:26]}  f5+ {[%clk 0:00:17]} 45. Kd4 {[%clk 0:00:26]}  Rxg2 {[%clk 0:00:18]} 46. Ra7+ {[%clk 0:00:25]}  Kc8 {[%clk 0:00:17]} 47. b6 {[%clk 0:00:16]}  e5+ {[%clk 0:00:16]} 48. Kxe5 {[%clk 0:00:16]}  Rc2 {[%clk 0:00:14]} 49. Kd5 {[%clk 0:00:16]}  Rd2+ {[%clk 0:00:13]} 50. Kc6 {[%clk 0:00:16]}  Kd8 {[%clk 0:00:12]} 51. Ra8+ {[%clk 0:00:16]}  Ke7 {[%clk 0:00:12]} 52. b7 {[%clk 0:00:17]}  Rb2 {[%clk 0:00:12]} 53. b8=Q {[%clk 0:00:16]}  Rxb8 {[%clk 0:00:13]} 54. Rxb8 {[%clk 0:00:17]}  f4 {[%clk 0:00:13]} 55. Kd5 {[%clk 0:00:18]}  g5 {[%clk 0:00:13]} 56. Ke4 {[%clk 0:00:18]}  h5 {[%clk 0:00:13]} 57. Rb6 {[%clk 0:00:18]}  Kf7 {[%clk 0:00:12]} 58. Kf5 {[%clk 0:00:17]}  f3 {[%clk 0:00:12]} 59. Kxg5 {[%clk 0:00:18]}  Kg7 {[%clk 0:00:12]} 60. Rf6 {[%clk 0:00:18]}  f2 {[%clk 0:00:12]} 61. Rxf2 {[%clk 0:00:18]} 1-0


[Site "https://www.chess.com"]

[Event "Titled Tuesday Blitz March 15 Late 2022"]
[White "Plotnikov, Pavel"]
[Black "Van Foreest, Jorden"]
[WhiteFideId "4170342"]
[BlackFideId "1039784"]
[WhiteElo "2298"]
[BlackElo "2609"]
[Result "1-0"]
[Round "01"]
[TimeControl "180+1"]
[Date "2022.03.15"]
[WhiteClock "0:00:05"]
[BlackClock "0:00:01"]

1. e4 {[%clk 0:03:00]}  c6 {[%clk 0:03:00]} 2. d4 {[%clk 0:03:00]}  d5 {[%clk 0:03:01]} 3. exd5 {[%clk 0:03:01]}  cxd5 {[%clk 0:03:01]} 4. Bd3 {[%clk 0:03:01]}  Nc6 {[%clk 0:03:02]} 5. c3 {[%clk 0:03:02]}  Nf6 {[%clk 0:03:02]} 6. Bf4 {[%clk 0:03:02]}  Bg4 {[%clk 0:03:02]} 7. Qb3 {[%clk 0:03:02]}  Qd7 {[%clk 0:03:03]} 8. Nd2 {[%clk 0:03:01]}  e6 {[%clk 0:03:03]} 9. Ngf3 {[%clk 0:03:02]}  Bd6 {[%clk 0:03:04]} 10. Bxd6 {[%clk 0:02:52]}  Qxd6 {[%clk 0:03:04]} 11. O-O {[%clk 0:02:52]}  O-O {[%clk 0:03:05]} 12. Rae1 {[%clk 0:02:52]}  Rab8 {[%clk 0:03:00]} 13. a4 {[%clk 0:02:48]}  Qc7 {[%clk 0:02:58]} 14. Ne5 {[%clk 0:02:46]}  Bh5 {[%clk 0:02:58]} 15. f4 {[%clk 0:02:30]}  Bg6 {[%clk 0:02:53]} 16. Nxg6 {[%clk 0:02:16]}  hxg6 {[%clk 0:02:54]} 17. Rf3 {[%clk 0:02:13]}  a6 {[%clk 0:02:52]} 18. Ree3 {[%clk 0:02:04]}  b5 {[%clk 0:02:52]} 19. axb5 {[%clk 0:02:03]}  axb5 {[%clk 0:02:53]} 20. Qd1 {[%clk 0:01:53]}  b4 {[%clk 0:02:53]} 21. Qe1 {[%clk 0:01:53]}  bxc3 {[%clk 0:02:49]} 22. bxc3 {[%clk 0:01:53]}  Rb2 {[%clk 0:02:49]} 23. Nf1 {[%clk 0:01:48]}  Ra8 {[%clk 0:02:42]} 24. Qh4 {[%clk 0:01:47]}  Ra1 {[%clk 0:02:42]} 25. Rh3 {[%clk 0:01:45]}  Kf8 {[%clk 0:02:42]} 26. Qh8+ {[%clk 0:01:41]}  Ke7 {[%clk 0:02:09]} 27. Qxg7 {[%clk 0:01:33]}  Nh5 {[%clk 0:01:37]} 28. Bxg6 {[%clk 0:01:16]}  Qxf4 {[%clk 0:01:21]} 29. Ref3 {[%clk 0:01:09]}  Nd8 {[%clk 0:00:33]} 30. Bxh5 {[%clk 0:00:43]}  Qe4 {[%clk 0:00:33]} 31. Bxf7 {[%clk 0:00:36]}  Kd6 {[%clk 0:00:32]} 32. Be8 {[%clk 0:00:33]}  Rb7 {[%clk 0:00:30]} 33. Qg3+ {[%clk 0:00:32]}  e5 {[%clk 0:00:23]} 34. Rf6+ {[%clk 0:00:26]}  Ne6 {[%clk 0:00:24]} 35. Rxe6+ {[%clk 0:00:21]}  Kxe6 {[%clk 0:00:24]} 36. Rh6+ {[%clk 0:00:21]}  Ke7 {[%clk 0:00:23]} 37. Qg7+ {[%clk 0:00:21]}  Kd8 {[%clk 0:00:23]} 38. Rd6+ {[%clk 0:00:20]}  Kc8 {[%clk 0:00:23]} 39. Bd7+ {[%clk 0:00:14]}  Kb8 {[%clk 0:00:23]} 40. Qxe5 {[%clk 0:00:08]}  Ka7 {[%clk 0:00:07]} 41. Qxe4 {[%clk 0:00:08]}  dxe4 {[%clk 0:00:08]} 42. Bg4 {[%clk 0:00:07]}  e3 {[%clk 0:00:06]} 43. Re6 {[%clk 0:00:05]}  Rbb1 {[%clk 0:00:02]} 44. Be2 {[%clk 0:00:05]}  Re1 {[%clk 0:00:03]} 45. Rxe3 {[%clk 0:00:05]}  Ra2 {[%clk 0:00:04]} 46. Kf2 {[%clk 0:00:05]}  Rc1 {[%clk 0:00:04]} 47. h4 {[%clk 0:00:05]}  Rb1 {[%clk 0:00:04]} 48. h5 {[%clk 0:00:05]}  Rb7 {[%clk 0:00:04]} 49. Ng3 {[%clk 0:00:05]}  Rf7+ {[%clk 0:00:04]} 50. Rf3 {[%clk 0:00:05]}  Rh7 {[%clk 0:00:05]} 51. Rf5 {[%clk 0:00:05]}  Kb6 {[%clk 0:00:05]} 52. c4 {[%clk 0:00:04]}  Kc7 {[%clk 0:00:05]} 53. c5 {[%clk 0:00:04]}  Rd2 {[%clk 0:00:05]} 54. d5 {[%clk 0:00:04]}  Kd7 {[%clk 0:00:05]} 55. Ke3 {[%clk 0:00:04]}  Rb2 {[%clk 0:00:05]} 56. d6 {[%clk 0:00:04]}  Ke6 {[%clk 0:00:05]} 57. Rg5 {[%clk 0:00:03]}  Kd7 {[%clk 0:00:03]} 58. Ne4 {[%clk 0:00:03]}  Rb3+ {[%clk 0:00:04]} 59. Kf4 {[%clk 0:00:03]}  Kc6 {[%clk 0:00:05]} 60. Bf3 {[%clk 0:00:04]}  Kb5 {[%clk 0:00:04]} 61. Rd5 {[%clk 0:00:03]}  Rf7+ {[%clk 0:00:04]} 62. Kg3 {[%clk 0:00:03]}  Rg7+ {[%clk 0:00:04]} 63. Kf2 {[%clk 0:00:03]}  Rb2+ {[%clk 0:00:04]} 64. Kg1 {[%clk 0:00:04]}  Rb1+ {[%clk 0:00:04]} 65. Kh2 {[%clk 0:00:04]}  Kc6 {[%clk 0:00:05]} 66. Rd3 {[%clk 0:00:04]}  Kd7 {[%clk 0:00:04]} 67. Nf6+ {[%clk 0:00:04]}  Ke6 {[%clk 0:00:05]} 68. Ng4 {[%clk 0:00:04]}  Rg5 {[%clk 0:00:02]} 69. h6 {[%clk 0:00:04]}  Rh5+ {[%clk 0:00:02]} 70. Kg3 {[%clk 0:00:05]}  Rc1 {[%clk 0:00:01]} 71. d7 {[%clk 0:00:05]} 1-0


[Site "https://www.chess.com"]